Cogmind - Beta 13 @@@ ROGUE MODE // 2024.05.04 @ 12:21:32 Player: Silfurdreki Result: Destroyed by S-10 Pest with Light Assault Rifle Performance ------------- Evolutions (1) 500 Regions Visited (5) 1000 Robots Destroyed (32) 160 Value Destroyed (703) 703 Prototype IDs (1) 20 Alien Tech Used (0) 0 Bonus (331) 331 TOTAL SCORE: 2714 Bonus ------- Follower Combat Kills 58 Aligned with FarCom 300 Friendly Fire -27 Cogmind --------- Core Integrity 0/400 Matter 288/300 Energy 100/100 System Corruption 4% Temperature Cool (0) Movement Core (300) Ox5 Location -8/Mines Parts ------- > --- POWER (1) -------- (None) > --- PROPULSION (3) --- (None) > --- UTILITY (3) ------ Medium Storage Unit Improved Targeting Computer > --- WEAPON (2) ------- Heavy Rocket Launcher > --- INVENTORY (10) --- Light Ion Engine Improved Ion Engine Compact Wheel Flight Unit Chronowheel Peak State ------------ > --- POWER ------------ Micro Nuclear Core > --- PROPULSION ------- Aluminum Leg Improved Carbon-fiber Leg Improved Carbon-fiber Leg > --- UTILITY ---------- Medium Storage Unit Improved Terrain Scanner Improved Targeting Computer > --- WEAPON ----------- Improved EM Shotgun Light Cannon > --- INVENTORY -------- Light Ion Engine Improved Ion Engine Aluminum Leg Aluminum Leg Compact Wheel Chronowheel EM Pulse Gun Improved EM Shotgun Heavy Rocket Launcher [Rating: 25] Favorites ----------- Power Micro Nuclear Core Engine Ion Engine Power Core Micro Nuclear Core Propulsion Aluminum Leg Leg Aluminum Leg Utility Medium Storage Unit Device Improved Terrain Scanner Storage Medium Storage Unit Processor Improved Targeting Computer Protection Light Armor Plating Weapon Improved EM Shotgun Energy Gun Improved EM Shotgun Ballistic Gun Assault Rifle Ballistic Cannon Light Cannon Launcher Heavy Rocket Launcher Build | -11 -10 -9 -9 -9 -8 ------- Run | Yrd Mat Mat Min Exi Min Slots Evolved 2 | . . 2 . . . Power . | . . . . . . Propulsion 1 | . . 1 . . . Utility 1 | . . 1 . . . Weapon . | . . . . . . Parts Attached 25 | 7 . 10 5 . 3 Power 3 | 1 . 1 1 . . Engine 2 | 1 . 1 . . . Core 1 | . . . 1 . . Reactor . | . . . . . . Propulsion 7 | 2 . 3 2 . . Treads . | . . . . . . Leg 7 | 2 . 3 2 . . Wheel . | . . . . . . Hover . | . . . . . . Flight . | . . . . . . Utility 6 | 2 . 3 1 . . Device 2 | 1 . . 1 . . Storage 2 | 1 . 1 . . . Processor 1 | . . 1 . . . Hackware . | . . . . . . Protection 1 | . . 1 . . . Artifact . | . . . . . . Weapon 9 | 2 . 3 1 . 3 Energy Gun 5 | . . 3 . . 2 Energy Cannon . | . . . . . . Ballistic Gun 2 | 2 . . . . . Ballistic Cannon 1 | . . . 1 . . Launcher 1 | . . . . . 1 Special Weapon . | . . . . . . Impact Weapon . | . . . . . . Slashing Weapon . | . . . . . . Piercing Weapon . | . . . . . . Special Melee Weapon . | . . . . . . Unidentified Prototypes 1 | . . 1 . . . Parts Lost 15 | . 1 4 1 . 9 Power 2 | . . 1 . . 1 Propulsion 4 | . . 1 . . 3 Utility 3 | . 1 . 1 . 1 Weapon 6 | . . 2 . . 4 Highest Loss Streak 6 | . 1 2 1 . 6 To Critical Strikes . | . . . . . . Average Slot Usage (%) 97 | . 97 86 99 100 96 Engine 4 | . 14 10 4 . . Core 6 | . . . 6 11 10 Leg 31 | . 28 32 33 33 31 Device 7 | . 11 . . 11 10 Storage 11 | . 14 11 11 11 11 Processor 8 | . . 8 11 11 11 Protection 2 | . . 2 9 . . Energy Gun 11 | . . 14 20 11 10 Ballistic Gun 5 | . 28 6 . . . Ballistic Cannon 5 | . . . 1 11 10 Naked Turns . | . . . . . . Heaviest Build 26 | 15 15 26 26 23 24 Greatest Support 46 | 20 20 30 46 46 46 Greatest Overweight (x) 7 | 1 . 1 . . 7 Average Overweight (x) . | . . . . . . Largest Inventory Capacity 10 | 8 8 10 10 10 10 Average Capacity 9 | 7 8 9 10 10 10 Most Carried 9 | 3 6 7 8 9 9 Average Carried 6 | 1 3 6 6 8 8 Final Capacity 10 | 8 8 10 10 10 10 Final Carried 9 | 3 6 5 8 9 5 Class Distribution -------------------- 68% | Mutant 19% | Skirmisher 11% | Scavenger-Mutant Dominant Class ---------------- Mutant | -10/Materials Mutant | -9/Materials Mutant | -9/Mines Mutant | -9/Exiles Skirmisher | -8/Mines Resources | -11 -10 -9 -9 -9 -8 ----------- Run | Yrd Mat Mat Min Exi Min Matter Collected 658 | 212 194 139 99 . 14 Remotely . | . . . . . . Salvage Created 903 | 24 237 186 227 . 229 Parts 69 | 2 19 15 14 . 19 Haulers Intercepted . | . . . . . . Recyclers Shooed . | . . . . . . Parts Field Recycled . | . . . . . . Retrieved Matter . | . . . . . . Parts Self-Destructed . | . . . . . . Prevented . | . . . . . . Kills | -11 -10 -9 -9 -9 -8 ------- Run | Yrd Mat Mat Min Exi Min Combat Hostiles Destroyed 25 | . 6 3 4 . 12 Guns 16 | . 6 2 3 . 5 Cannons 2 | . . . 1 . 1 AOE 7 | . . 1 . . 6 Classes Destroyed 8 | 1 5 2 . . . Worker 2 | . 1 . 1 . . Builder 2 | . 1 1 . . . Tunneler 2 | 1 . . 1 . . Watcher 1 | . 1 . . . . Swarmer 12 | . 3 . . . 9 Grunt 11 | . 3 1 4 . 3 Duelist 1 | . . 1 . . . Sentry 1 | . . 1 . . . Best Kill Streak 8 | 1 3 3 4 . 8 Combat Bots Only 8 | . 3 2 3 . 8 Max Kills in Single Turn 5 | 1 1 2 2 . 5 Gunslinging 1 | . . . . . 1 Exploded 5 | . . 1 . . 5 Melee . | . . . . . . Uniques/NPCs Destroyed . | . . . . . . Combat | -11 -10 -9 -9 -9 -8 -------- Run | Yrd Mat Mat Min Exi Min Hostile Shots Fired 218 | . 47 25 20 . 126 Missed 59 | . 12 5 4 . 38 Damage Taken 2023 | . 380 302 237 . 1104 Core 453 | . 51 123 13 . 266 Absorbed by Shields . | . . . . . . Core Remaining (%) 89 | 100 79 . . . . Volleys Fired 71 | 1 29 8 20 . 13 Largest 2 | 2 2 2 2 . 2 Hottest 90 | 40 40 90 90 . 85 Shots Fired 138 | 2 58 16 40 . 22 Gun 123 | 2 58 16 29 . 18 Cannon 14 | . . . 11 . 3 Launcher 1 | . . . . . 1 Special . | . . . . . . Kinetic 74 | 2 58 . 11 . 3 Thermal . | . . . . . . Explosive 1 | . . . . . 1 Electromagnetic 63 | . . 16 29 . 18 Robot Hit Streak 8 | 1 8 7 6 . 5 Robot Miss Streak 2 | . 2 2 2 . 2 Penetration Max . | . . . . . . Secondary Targets 3 | . 1 . . . 2 Max Gunslinging Chain 1 | . 1 . . . 1 Shots Hit Robots 78 | 1 36 10 14 . 17 Core Hits 49 | 1 14 9 11 . 14 Critical Kills . | . . . . . . Critical Parts Destroyed . | . . . . . . Critical Strikes . | . . . . . . Melee Attacks . | . . . . . . Impact . | . . . . . . Slashing . | . . . . . . Piercing . | . . . . . . Sneak Attacks . | . . . . . . Combat Hostiles . | . . . . . . Follow-up Attacks . | . . . . . . Damage Inflicted 1697 | 10 482 203 346 . 656 Guns 1118 | 10 482 159 250 . 217 Cannons 51 | . . . 33 . 18 Explosions 516 | . . 44 63 . 409 Melee . | . . . . . . Ramming 12 | . . . . . 12 Kinetic 543 | 10 482 . 33 . 18 Thermal 132 | . . 44 63 . 25 Explosive 384 | . . . . . 384 Electromagnetic 626 | . . 159 250 . 217 Impact . | . . . . . . Slashing . | . . . . . . Piercing . | . . . . . . Highest Corruption 4 | . . . . . 4 Average Corruption 4 | . . . . . 4 Corruption Purged . | . . . . . . Corruption Blocked . | . . . . . . Overload Shots . | . . . . . . Overflow Damage 84 | . . . . . 84 Projectiles . | . . . . . . Explosions 84 | . . . . . 84 Melee . | . . . . . . Knockbacks 1 | . . . 1 . . Impact . | . . . . . . Kinetic 1 | . . . 1 . . Secondary . | . . . . . . Self-Inflicted Damage 167 | . . 37 30 . 100 Shots 4 | . . 1 1 . 2 Rammed . | . . . . . . Targets Rammed 7 | . . . 1 . 6 Kicked 7 | . . . 1 . 6 Crushed . | . . . . . . Highest Temperature 263 | . 33 87 263 . 240 Average Temperature 98 | . 12 34 127 . 107 Received Heat Transfer 747 | . 189 105 120 . 333 Siege Activations . | . . . . . . Robots Corrupted . | . . . . . . Combat Hostiles . | . . . . . . Parts Fried 4 | . . 1 2 . 1 Impact Corruptions . | . . . . . . Robots Melted . | . . . . . . Combat Hostiles . | . . . . . . Parts Melted . | . . . . . . Heat Transferred 150 | . . . 100 . 50 Parts Sabotaged . | . . . . . . Parts Stolen . | . . . . . . Parts Stripped . | . . . . . . Power Chain Reactions 3 | . . 1 1 . 1 Alert | -11 -10 -9 -9 -9 -8 ------- Run | Yrd Mat Mat Min Exi Min Peak Influence 241 | 5 230 130 162 . 241 Initial 46 | . 3 12 46 . . Average 60 | 2 83 44 102 . 24 Maximum Alert Level 1 | . 1 . . . 1 Low Security (%) 98 | 100 97 100 100 . 97 Level 1 1 | . 2 . . . 2 Level 2 . | . . . . . . Level 3 . | . . . . . . Level 4 . | . . . . . . Level 5 . | . . . . . . High Security . | . . . . . . Max Security . | . . . . . . Squads Dispatched 3 | . 2 . 1 . . Investigation 3 | . 2 . 1 . . Extermination . | . . . . . . Reinforcement . | . . . . . . Assault . | . . . . . . Garrison . | . . . . . . Intercept . | . . . . . . Searches Triggered . | . . . . . . Construction Impeded . | . . . . . . Haulers Reinforced . | . . . . . . Active Scanning Responses . | . . . . . . Cargo Convoy Interrupts . | . . . . . . Stealth | -11 -10 -9 -9 -9 -8 --------- Run | Yrd Mat Mat Min Exi Min Distress Signals 2 | . . 2 . . . Communications Jammed . | . . . . . . Distress Signals . | . . . . . . Times Spotted 48 | . 13 10 7 . 18 Peak Tracking Total 13 | . 3 7 3 . 13 Tactical Retreats . | . . . . . . Traps | -11 -10 -9 -9 -9 -8 ------- Run | Yrd Mat Mat Min Exi Min Traps Triggered 2 | . 2 . . . . Indirectly . | . . . . . . Trap Hack Attempts . | . . . . . . Triggered . | . . . . . . Disarmed . | . . . . . . Reprogrammed . | . . . . . . Reused . | . . . . . . Traps Extracted . | . . . . . . Installed . | . . . . . . Triggered . | . . . . . . Machines | -11 -10 -9 -9 -9 -8 ---------- Run | Yrd Mat Mat Min Exi Min Machines Disabled 1 | . . 1 . . . Max in Single Turn 1 | . . 1 . . . Machines Repaired . | . . . . . . Machines Dismantled . | . . . . . . Machines Sabotaged . | . . . . . . Overloaded Fab Kills . | . . . . . . Hacking | -11 -10 -9 -9 -9 -8 --------- Run | Yrd Mat Mat Min Exi Min Machines Accessed 13 | . 5 3 1 4 . Terminals 7 | . 4 3 . . . Fabricators . | . . . . . . Repair Stations . | . . . . . . Recycling Units 1 | . 1 . . . . Scanalyzers . | . . . . . . Garrison Access . | . . . . . . Total Hacks 68 | . 10 8 1 49 . Successful 59 | . 4 5 1 49 . Failed 9 | . 6 3 . . . Catastrophic 4 | . 3 1 . . . Database Lockouts . | . . . . . . Manual 18 | . 10 7 . 1 . Terminals 17 | . 9 8 . . . Fabricators . | . . . . . . Repair Stations . | . . . . . . Recycling Units 1 | . 1 . . . . Scanalyzers . | . . . . . . Garrison Access . | . . . . . . Terminal Hacks 55 | . 1 4 1 49 . Record 49 | . . . . 49 . Open Door 1 | . . . 1 . . Level Access Points 1 | . . 1 . . . Terminal Index 2 | . 1 1 . . . Alert Level 1 | . . 1 . . . Zone Layout 1 | . . 1 . . . Fabricator Hacks . | . . . . . . Repair Station Hacks . | . . . . . . Recycling Unit Hacks . | . . . . . . Scanalyzer . | . . . . . . Garrison Access Hacks . | . . . . . . Unauthorized Hacks 4 | . 3 1 . . . Terminals 3 | . 2 1 . . . Botnet 3 | . 2 1 . . . Fabricators . | . . . . . . Repair Stations . | . . . . . . Recycling Units 1 | . 1 . . . . Reject 1 | . 1 . . . . Scanalyzers . | . . . . . . Garrison Access . | . . . . . . Data Cores Recovered . | . . . . . . Used . | . . . . . . Hacking Detections 7 | . 4 3 . . . Full Trace Events . | . . . . . . Feedback Events . | . . . . . . Feedback Blocked . | . . . . . . Robot Schematics Acquired . | . . . . . . Robots Built . | . . . . . . Authchips . | . . . . . . Time . | . . . . . . Total Robot Build Rating . | . . . . . . Part Schematics Acquired . | . . . . . . Parts Built . | . . . . . . Authchips . | . . . . . . Time . | . . . . . . Total Part Build Rating . | . . . . . . Parts Repaired . | . . . . . . Time . | . . . . . . Parts Recycled . | . . . . . . Recycled Matter . | . . . . . . Retrieved Matter . | . . . . . . Retrieved Components . | . . . . . . Parts Scanalyzed . | . . . . . . Part Schematics Acquired . | . . . . . . Parts Damaged . | . . . . . . Bothacking | -11 -10 -9 -9 -9 -8 ------------ Run | Yrd Mat Mat Min Exi Min Used RIF Installer . | . . . . . . Robots Hacked . | . . . . . . Non-combat . | . . . . . . Combat . | . . . . . . Robot Hacks Applied . | . . . . . . Relay Couplers Released . | . . . . . . Fabnet Peak Effective % . | . . . . . . Robots Rewired . | . . . . . . Allies Hacked . | . . . . . . Hacks Repelled . | . . . . . . Allies | -11 -10 -9 -9 -9 -8 -------- Run | Yrd Mat Mat Min Exi Min Total Allies 2 | . . . 2 . . Largest Group 2 | . . . 2 1 . Highest-Rated Group 40 | . . . 40 31 . Highest-Rated Ally 31 | . . . 31 31 . Total Orders . | . . . . . . Ally Attacks 5 | . . . 5 . . Total Damage 108 | . . . 108 . . Kills 2 | . . . 2 . . Allies Corrupted . | . . . . . . Allies Melted . | . . . . . . Intel | -11 -10 -9 -9 -9 -8 ------- Run | Yrd Mat Mat Min Exi Min Robot Analysis Total . | . . . . . . Derelict Logs Recovered 3 | . . . 3 . . Drone Launches . | . . . . . . Drone Recoveries . | . . . . . . Exploration | -11 -10 -9 -9 -9 -8 ------------- Run | Yrd Mat Mat Min Exi Min Turns Passed 2636 | 74 442 312 501 731 576 Spaces Moved 1852 | 48 275 220 350 609 350 Core 9 | 5 . . . . 4 Treads . | . . . . . . Legs 1843 | 43 275 220 350 609 346 Wheels . | . . . . . . Hover . | . . . . . . Flight . | . . . . . . Fastest Speed 50 | 50 120 120 120 120 120 Average Speed 120 | 121 120 120 120 120 122 Slowest Speed 400 | 190 120 190 120 120 400 Overloaded Moves . | . . . . . . Propulsion Burnouts . | . . . . . . Robots Hopped . | . . . . . . Cave-ins Triggered . | . . . . . . Exploration Rate (%) 46 | 3 43 29 56 93 54 Regions Visited 5 Branch Regions 3 Pre-discovered Areas 2 | . . . 1 1 . Known Exits Taken 1 | . . . 1 . . Unknown Exits Taken 4 | 1 1 1 . 1 . Scrap Searched 2 | . . . 2 . . Spaces Dug . | . . . . . . Terrain Destroyed 27 | . . . 4 . 23 Melee . | . . . . . . Projectile . | . . . . . . AOE 27 | . . . 4 . 23 Terrain Rammed . | . . . . . . Walls Destroyed . | . . . . . . Machines Disabled . | . . . . . . Actions | -11 -10 -9 -9 -9 -8 --------- Run | Yrd Mat Mat Min Exi Min Total 2111 | 58 329 249 389 609 477 Wait 136 | . 23 . 11 . 102 Move 1847 | 47 274 219 349 608 350 Hop . | . . . . . . Pick Up 16 | 3 3 6 2 1 1 Fast Attach 12 | 7 . 4 1 . . Attach 7 | . . 4 . . 3 Detach . | . . . . . . Swap 7 | . . 3 4 . . Drop 8 | . . 5 1 . 2 Fire 71 | 1 29 8 20 . 13 Melee . | . . . . . . Ram . | . . . . . . Kick 7 | . . . 1 . 6 Crush . | . . . . . . Escape Stasis . | . . . . . . Rewire . | . . . . . . Trap . | . . . . . . Miscellaneous . | . . . . . . Route ------- -11/Scrapyard -10/Materials (discovered 2 exits: *Mat / [*Min]) -9/Materials (discovered 5 exits: Mat x3 / *Min x2) -9/Mines (discovered 3 exits: *Mat / *Exi / [*Zio]) -9/Exiles (discovered 2 exits: [*Min x2]) -8/Mines (discovered 1 exit: *Mat) History --------- Turn | Location | Event 23 | -11/Scrapyard | Discovered new exit (range 15) 75 | -11/Scrapyard | Entered Materials 304 | -10/Materials | Build established: Mutant 322 | -10/Materials | Discovered new exit (range 4) 468 | -10/Materials | Discovered new exit (range 15) 517 | -10/Materials | Entered another Materials area 517 | -9/Materials | Evolved 2 slots: Propulsion x1, Utility x1 774 | -9/Materials | Discovered new exit (range 18) 797 | -9/Materials | Identified exit to Materials 800 | -9/Materials | Discovered new exit (range 11) 829 | -9/Materials | Entered Mines 974 | -9/Mines | Discovered exit to Materials (range 6) 995 | -9/Mines | Learned 8 Materials zone layouts 998 | -9/Mines | Identified exit to Exiles 1001 | -9/Mines | Build established: Scavenger-Mutant 1011 | -9/Mines | Met a Derelict shopkeep closing up shop 1060 | -9/Mines | A Derelict revealed a hidden shortcut to a safe place 1128 | -9/Mines | Joined a pair of Derelicts in attacking an 0b10 outpost 1135 | -9/Mines | Learned location of Zion (-7) 1240 | -9/Mines | Excavation squad dispatched 1240 | -9/Mines | A large section of the Mines collapsed 1320 | -9/Mines | Build established: Mutant 1324 | -9/Mines | Deemed a non-threat by the Exiles lab entrance 1330 | -9/Mines | Entered Exiles 1330 | -9/Exiles | Accompanied by 1 ally 1348 | -9/Exiles | Discovered new exit (range 15) 1360 | -9/Exiles | Led the pair of lost Derelicts to a safe place 1362 | -9/Exiles | Met 8R-AWN 1381 | -9/Exiles | Met EX-HEX 1443 | -9/Exiles | Met EX-DEC 1477 | -9/Exiles | Visited The Gauntlet 1700 | -9/Exiles | Discovered new exit (range 15) 1783 | -9/Exiles | Met EX-BIN 1908 | -9/Exiles | Aligned with FarCom system 1909 | -9/Exiles | Given EX-Vault access code 1936 | -9/Exiles | Opened EX-Vault 1944 | -9/Exiles | Found Prototype Device 1970 | -9/Exiles | Warned to stay clear of 0b10 Research branches 2061 | -9/Exiles | Left Exiles lab with Chronowheel 2061 | -9/Exiles | Entered Mines 2365 | -8/Mines | Build established: Skirmisher 2586 | -8/Mines | Discovered exit to Materials (range 16) 2604 | -8/Mines | Core integrity fell below 50% 2612 | -8/Mines | Lost 3 parts (1n2w) 2625 | -8/Mines | Core integrity fell below 20% 2637 | -8/Mines | Destroyed by S-10 Pest with Light Assault Rifle Last Messages --------------- 02611_ Switching to secondary target: S-10 Pest. 02611_ S-10 Pest destroyed. 02615_ EM Pulse Gun destroyed. 02619_ K-01 Serf collects debris. 02620_ Imp. Carbon-fiber Leg destroyed. 02622_ Imp. EM Shotgun destroyed. 02624_ Imp. Carbon-fiber Leg destroyed. 02624_ Destroyed Imp. Carbon-fiber Leg. 02624_ S-10 Pest destroyed. 02624_ G-47 Trooper destroyed. 02624_ S-10 Pest destroyed. 02624_ G-47 Trooper destroyed. [Achievement: Quick And Dirty] 02624_ Destroyed Lgt. Ion Engine. 02624_ Destroyed Wheel. 02626_ Mic. Nuclear Core destroyed. 02629_ Imp. Terrain Scanner destroyed. 02629_ System corrupted by crushing effect (+4). 02629_ Knocked back. [Achievement: This Is Interesting...] Map ----- +----------------------------------------------------+ | ?????????????????????????????????????????????????? | | ?????????????????????????????????????????????????? | | ?????????????????????????????????????????????????? | | ?????????????????????????????????????????????????? | | ?????????????????????????????????????????????????? | | ?????????????????????????????????????????????????? | | ?????????????????????????????????????????????????? | | ?????????????????????????????????????????????????? | | ?????????????????????????????????????????????????? | | ?????????????????????????#???????????????????????? | | ????????????????????????????###?? ???????????????? | | ????????????????????????????# ?????????????????? | | ???????????????????????????## ?????????????????? | | ????????????????????????????# #?????????????????? | | ????????????????????????????# #?????????????????? | | ????????????????????????????# #?????????????????? | | ???????????????#??###??????## ##????????????????? | | ??????????????## ## #?##### #???????#????????? | | ??????????????? ## ##???????????????? | | ???????????????? ##???###????????? | | ????????????###### ###### ###### #?? | | ??????????? * == #?? | | ?????????????? < # [* [%%[ | | ????#???????????## ## !%= ###* ###### ? | | ??#???????????#??## ## [ ## ##????????? | | ???????????????????# @ # g! ###??????? | | ??????????????????## b ===%* ##????#? | | ???????????????????#t s %= = ##????? | | ????? #??????? # % #????? | | ???????????? k ############ #??##? | | ???????? ???####### ##???#?????#?## r ##???#? | | ?????????????????##??????????##?### % ##????? | | #???????????????????????????#?#???## % ##???? | | #??????????????????????????##?#????#####% ##??# | | ##???#????????????#????????#####?#?#???## #### | | #######????????#?? ???##?## ##??????### | | #????#?????????????## ########## | | ##### #??????? ???#????#?## ##### "#% | | #???# #???##???????? ???## % | | #???# #????????????????## % | | #???# #??????????#????## ##### | | ##### #####?????#?????# ###??## ### # | | ###??????#???# ##?#??########### ## | | #??????#??### ##??#?#?######### ## | | #### ##????###### ###???## | | ##??# ##???# ###?#?# ####### ## | | #???# ###?# ##### ###?# #??#### ## | | ?#??# ### ### ###?#### ### #?### # | | ????#####?## #??#???## ## ##?# | | ???????#?#?# ####????#### #??# | +----------------------------------------------------+ Best States ------------- Heat Dissipation 28 Energy Generation 15 Energy Capacity 265 Matter Stores 300 Matter Capacity 300 Sight Range 16 Terrain Scan Range 16 Terrain Scan Density 10 Armor Coverage 150 Evasion (%) 55 Targeting Accuracy 6 Item Schematics ----------------- None Robot Schematics ------------------ None Fabricated ------------ Nothing Alien Tech Used ----------------- None Achievements -------------- Quick And Dirty This Is Interesting... Challenges ------------ None Game ------ Seed LinearEfficiencyFlightbrick Manual? 0 Play Time 00:26:55 Cumulative 19.4 hours Start 2024.05.04 @ 11:51:57 End 2024.05.04 @ 12:21:32 Sessions 1 Manual Loads 0 Difficulty Rogue Special Mode None Game No. 32 Rogue 32 Adventurer 0 Explorer 0 Win Type - Total 0 Types 0/0/0/0/0/0/0/0/0 Lore% 30 Gallery% 27 Achievement% 24 Wizard Run 0 Options --------- Layout 0 ASCII 0 Keyboard 0 Movement Numpad Keybinds 0 Fullscreen 1 Font 18/SmallcapsGlow Map View 76x50 Zoom Use 0% Tactical HUD 1 Map Filters NONE Filters NONE Steam 1 RUN: 13983f14-486b-4735-a00b-50997223a22b